[Event "*** Qualifier 3: Titled Tuesday 3|2 Blitz"]
[Site "Chess.com"]
[Date "2017.04.18"]
[Round "4"]
[White "TenisMaster"]
[Black "superjem123"]
[Result "1/2-1/2"]
[WhiteElo "2670"]
[BlackElo "2557"]
[TimeControl "180+2"]
[EndTime "13:58:31 PDT"]
[Termination "Game drawn by 50-move rule"]

1. e4 {[%clk 0:03:02]} 1... e5 {[%clk 0:03:00.5]} 2. Nf3 {[%clk 0:03:02.2]} 2...
Nc6 {[%clk 0:03:01.8]} 3. Bb5 {[%clk 0:03:02.2]} 3... Nf6 {[%clk 0:03:03]} 4. d3
{[%clk 0:02:55.2]} 4... Ne7 {[%clk 0:03:00.4]} 5. O-O {[%clk 0:02:44.8]} 5...
Ng6 {[%clk 0:02:59.1]} 6. d4 {[%clk 0:02:37.1]} 6... c6 {[%clk 0:02:58.7]} 7.
dxe5 {[%clk 0:02:29.7]} 7... Ng4 {[%clk 0:02:47]} 8. Be2 {[%clk 0:02:17.2]} 8...
Be7 {[%clk 0:02:44.9]} 9. Nc3 {[%clk 0:02:05.9]} 9... O-O {[%clk 0:02:37.2]} 10.
Nd4 {[%clk 0:02:01.7]} 10... N4xe5 {[%clk 0:02:24]} 11. f4 {[%clk 0:02:01.6]}
11... c5 {[%clk 0:02:25.2]} 12. Nf5 {[%clk 0:01:49.8]} 12... Nc6 {[%clk
0:02:25.9]} 13. Nd5 {[%clk 0:01:49]} 13... d6 {[%clk 0:02:23.2]} 14. Ndxe7+
{[%clk 0:01:46.2]} 14... Ngxe7 {[%clk 0:02:25.1]} 15. Nxd6 {[%clk 0:01:46.4]}
15... Nd4 {[%clk 0:02:19.9]} 16. Nc4 {[%clk 0:01:36.8]} 16... Nec6 {[%clk
0:02:08.4]} 17. Be3 {[%clk 0:01:30.1]} 17... Nxe2+ {[%clk 0:02:09.4]} 18. Qxe2
{[%clk 0:01:30.6]} 18... Nd4 {[%clk 0:02:11.3]} 19. Qf2 {[%clk 0:01:29.6]} 19...
Qe7 {[%clk 0:01:37.3]} 20. e5 {[%clk 0:01:24]} 20... b6 {[%clk 0:01:16.8]} 21.
Nd6 {[%clk 0:01:04.3]} 21... Ba6 {[%clk 0:01:17.2]} 22. Rfe1 {[%clk 0:01:04.1]}
22... Nb5 {[%clk 0:01:13.4]} 23. Qg3 {[%clk 0:01:00.7]} 23... Nxd6 {[%clk
0:01:08.2]} 24. exd6 {[%clk 0:01:00.6]} 24... Qxd6 {[%clk 0:01:10.1]} 25. Rad1
{[%clk 0:01:00.3]} 25... Qf6 {[%clk 0:01:10.4]} 26. Bd2 {[%clk 0:00:46.6]} 26...
Rfe8 {[%clk 0:00:35.9]} 27. Bc3 {[%clk 0:00:46]} 27... Rxe1+ {[%clk 0:00:25.6]}
28. Rxe1 {[%clk 0:00:46.4]} 28... Qh6 {[%clk 0:00:24.4]} 29. Re7 {[%clk
0:00:42.5]} 29... Bc4 {[%clk 0:00:19.1]} 30. b3 {[%clk 0:00:38.7]} 30... Be6
{[%clk 0:00:20.1]} 31. h3 {[%clk 0:00:39.1]} 31... a5 {[%clk 0:00:18.8]} 32. Rb7
{[%clk 0:00:36.4]} 32... Qg6 {[%clk 0:00:16.7]} 33. Qxg6 {[%clk 0:00:18.6]}
33... hxg6 {[%clk 0:00:18.6]} 34. Rxb6 {[%clk 0:00:19.7]} 34... a4 {[%clk
0:00:20]} 35. Rc6 {[%clk 0:00:16.3]} 35... axb3 {[%clk 0:00:20.9]} 36. axb3
{[%clk 0:00:17.5]} 36... Ra2 {[%clk 0:00:22.2]} 37. Rxc5 {[%clk 0:00:18.5]}
37... Rxc2 {[%clk 0:00:23.7]} 38. b4 {[%clk 0:00:19.5]} 38... Bf5 {[%clk
0:00:21.6]} 39. g4 {[%clk 0:00:19.3]} 39... Be4 {[%clk 0:00:22.5]} 40. b5 {[%clk
0:00:20.1]} 40... f6 {[%clk 0:00:14.1]} 41. b6 {[%clk 0:00:20.6]} 41... g5
{[%clk 0:00:10.6]} 42. fxg5 {[%clk 0:00:21.1]} 42... fxg5 {[%clk 0:00:11.5]} 43.
Kf1 {[%clk 0:00:21.8]} 43... g6 {[%clk 0:00:06.3]} 44. Ke1 {[%clk 0:00:22.4]}
44... Kf7 {[%clk 0:00:07.2]} 45. Kd1 {[%clk 0:00:22.8]} 45... Rh2 {[%clk
0:00:05.3]} 46. Re5 {[%clk 0:00:20.6]} 46... Bf3+ {[%clk 0:00:05.3]} 47. Kc1
{[%clk 0:00:20.3]} 47... Rxh3 {[%clk 0:00:07.2]} 48. Rxg5 {[%clk 0:00:18.5]}
48... Rh1+ {[%clk 0:00:07.5]} 49. Kb2 {[%clk 0:00:19]} 49... Rg1 {[%clk
0:00:09.1]} 50. Rc5 {[%clk 0:00:17.8]} 50... Rxg4 {[%clk 0:00:10]} 51. b7 {[%clk
0:00:18.2]} 51... Bxb7 {[%clk 0:00:09.5]} 52. Rc7+ {[%clk 0:00:19.8]} 52... Ke6
{[%clk 0:00:10.9]} 53. Rxb7 {[%clk 0:00:21.7]} 53... Re4 {[%clk 0:00:12.1]} 54.
Kc2 {[%clk 0:00:22.5]} 54... g5 {[%clk 0:00:12.6]} 55. Kd3 {[%clk 0:00:23.8]}
55... Rf4 {[%clk 0:00:14]} 56. Bd2 {[%clk 0:00:24.6]} 56... Rf5 {[%clk
0:00:14.5]} 57. Be3 {[%clk 0:00:24.2]} 57... g4 {[%clk 0:00:14.9]} 58. Rg7
{[%clk 0:00:25]} 58... g3 {[%clk 0:00:15.8]} 59. Rxg3 {[%clk 0:00:25]} 59...
Rd5+ {[%clk 0:00:17.2]} 60. Bd4 {[%clk 0:00:25.8]} 60... Rd6 {[%clk 0:00:18.5]}
61. Ke4 {[%clk 0:00:26.4]} 61... Rc6 {[%clk 0:00:19.9]} 62. Rg6+ {[%clk
0:00:26.3]} 62... Kd7 {[%clk 0:00:20.5]} 63. Rg7+ {[%clk 0:00:27.5]} 63... Ke6
{[%clk 0:00:22]} 64. Rh7 {[%clk 0:00:27.7]} 64... Rd6 {[%clk 0:00:23]} 65. Be5
{[%clk 0:00:27.6]} 65... Rc6 {[%clk 0:00:24.3]} 66. Kd4 {[%clk 0:00:25.5]} 66...
Rc1 {[%clk 0:00:16.2]} 67. Rh6+ {[%clk 0:00:25.2]} 67... Kd7 {[%clk 0:00:16.5]}
68. Kd5 {[%clk 0:00:25.3]} 68... Rd1+ {[%clk 0:00:17.6]} 69. Bd4 {[%clk
0:00:26.3]} 69... Rd2 {[%clk 0:00:18.1]} 70. Rh7+ {[%clk 0:00:27.2]} 70... Ke8
{[%clk 0:00:19]} 71. Ke5 {[%clk 0:00:27.3]} 71... Rd1 {[%clk 0:00:14.3]} 72. Bc5
{[%clk 0:00:27.9]} 72... Rd7 {[%clk 0:00:14.8]} 73. Rh6 {[%clk 0:00:27.3]} 73...
Rf7 {[%clk 0:00:13.6]} 74. Ke6 {[%clk 0:00:26.1]} 74... Re7+ {[%clk 0:00:14.4]}
75. Kd6 {[%clk 0:00:25.8]} 75... Rd7+ {[%clk 0:00:15]} 76. Ke5 {[%clk
0:00:25.5]} 76... Rf7 {[%clk 0:00:09.4]} 77. Bd6 {[%clk 0:00:26.1]} 77... Kd7
{[%clk 0:00:10]} 78. Kd5 {[%clk 0:00:21]} 78... Rf5+ {[%clk 0:00:10.7]} 79. Be5
{[%clk 0:00:22]} 79... Rf7 {[%clk 0:00:12.6]} 80. Ra6 {[%clk 0:00:21.8]} 80...
Ke7 {[%clk 0:00:13.1]} 81. Bd6+ {[%clk 0:00:18.9]} 81... Kd7 {[%clk 0:00:14.4]}
82. Ra8 {[%clk 0:00:17.4]} 82... Rf5+ {[%clk 0:00:14.6]} 83. Be5 {[%clk
0:00:18.5]} 83... Rf7 {[%clk 0:00:15.6]} 84. Ra7+ {[%clk 0:00:16.5]} 84... Ke8
{[%clk 0:00:16.1]} 85. Bc7 {[%clk 0:00:15.7]} 85... Kd7 {[%clk 0:00:14.3]} 86.
Bb6+ {[%clk 0:00:15.8]} 86... Ke8 {[%clk 0:00:15.1]} 87. Ra8+ {[%clk 0:00:16.3]}
87... Kd7 {[%clk 0:00:16]} 88. Bd4 {[%clk 0:00:17.3]} 88... Re7 {[%clk
0:00:15.4]} 89. Bf6 {[%clk 0:00:16.2]} 89... Rf7 {[%clk 0:00:15.6]} 90. Ke5
{[%clk 0:00:17.5]} 90... Kc6 {[%clk 0:00:15.7]} 91. Ke6 {[%clk 0:00:17.5]} 91...
Rc7 {[%clk 0:00:14.7]} 92. Be5 {[%clk 0:00:18.2]} 92... Rb7 {[%clk 0:00:15.1]}
93. Rc8+ {[%clk 0:00:18.7]} 93... Kb5 {[%clk 0:00:15.8]} 94. Kd5 {[%clk
0:00:20.3]} 94... Rd7+ {[%clk 0:00:16.6]} 95. Bd6 {[%clk 0:00:21.4]} 95... Rb7
{[%clk 0:00:18.5]} 96. Rc1 {[%clk 0:00:21.4]} 96... Rb6 {[%clk 0:00:19.1]} 97.
Bc5 {[%clk 0:00:21.2]} 97... Rb7 {[%clk 0:00:19]} 98. Ra1 {[%clk 0:00:19.8]}
98... Rd7+ {[%clk 0:00:19.2]} 99. Bd6 {[%clk 0:00:20.5]} 99... Rb7 {[%clk
0:00:21.1]} 100. Rc1 {[%clk 0:00:19.5]} 100... Rb6 {[%clk 0:00:21.2]} 101. Bc7
{[%clk 0:00:19.2]} 101... Rb7 {[%clk 0:00:20.6]} 102. Kd6 {[%clk 0:00:20.2]}
102... Ka4 {[%clk 0:00:16.7]} 103. Ra1+ {[%clk 0:00:15.9]} 103... Kb5 {[%clk
0:00:17.2]} 104. Rc1 {[%clk 0:00:14.9]} 104... Ka6 {[%clk 0:00:14.5]} 105. Kd5
{[%clk 0:00:12.3]} 105... Kb5 {[%clk 0:00:14.6]} 106. Rc6 {[%clk 0:00:11.8]}
106... Kb4 {[%clk 0:00:14.7]} 107. Bd6+ {[%clk 0:00:12]} 107... Kb3 {[%clk
0:00:15.5]} 108. Kd4 {[%clk 0:00:12.1]} 108... Rb5 {[%clk 0:00:15.2]} 109. Kd3
{[%clk 0:00:13]} 109... Rd5+ {[%clk 0:00:15.4]} 110. Ke3 {[%clk 0:00:13.1]}
110... Rd1 {[%clk 0:00:13.4]} 111. Be5 {[%clk 0:00:11.8]} 111... Rd5 {[%clk
0:00:13.3]} 112. Rb6+ {[%clk 0:00:10.3]} 112... Kc4 {[%clk 0:00:13.5]} 113. Ke4
{[%clk 0:00:11.6]} 113... Rc5 {[%clk 0:00:14.6]} 114. Bd4 {[%clk 0:00:11.9]}
114... Rc8 {[%clk 0:00:15.2]} 115. Rb1 {[%clk 0:00:12.4]} 115... Rc6 {[%clk
0:00:16]} 116. Be5 {[%clk 0:00:10.1]} 116... Kc5 {[%clk 0:00:16.2]} 117. Rh1
{[%clk 0:00:08.3]} 117... Kc4 {[%clk 0:00:16.9]} 1/2-1/2

[Event "*** Qualifier 3: Titled Tuesday 3|2 Blitz"]
[Site "Chess.com"]
[Date "2017.04.18"]
[Round "5"]
[White "FearNoEvil12"]
[Black "MFBerna"]
[Result "0-1"]
[WhiteElo "2110"]
[BlackElo "2181"]
[TimeControl "180+2"]
[EndTime "14:02:23 PDT"]
[Termination "MFBerna won by resignation"]

1. e4 {[%clk 0:03:02]} 1... c5 {[%clk 0:02:57.1]} 2. Nc3 {[%clk 0:03:02.1]} 2...
e6 {[%clk 0:02:56]} 3. f4 {[%clk 0:03:03.3]} 3... d5 {[%clk 0:02:51.1]} 4. Nf3
{[%clk 0:03:04.4]} 4... Nf6 {[%clk 0:02:50.8]} 5. Bb5+ {[%clk 0:03:04.8]} 5...
Bd7 {[%clk 0:02:48]} 6. Qe2 {[%clk 0:03:02.7]} 6... Be7 {[%clk 0:02:46.6]} 7.
O-O {[%clk 0:02:58.5]} 7... O-O {[%clk 0:02:42.6]} 8. Bxd7 {[%clk 0:02:51.8]}
8... Qxd7 {[%clk 0:02:42.5]} 9. d3 {[%clk 0:02:53.3]} 9... Nc6 {[%clk
0:02:41.7]} 10. Kh1 {[%clk 0:02:50.8]} 10... dxe4 {[%clk 0:02:38.7]} 11. dxe4
{[%clk 0:02:50.8]} 11... e5 {[%clk 0:02:39.6]} 12. f5 {[%clk 0:02:50.4]} 12...
Nd4 {[%clk 0:02:23.7]} 13. Nxd4 {[%clk 0:02:49.5]} 13... cxd4 {[%clk 0:02:21.3]}
14. Nd1 {[%clk 0:02:49.7]} 14... Rac8 {[%clk 0:02:19.9]} 15. Bg5 {[%clk
0:02:38.6]} 15... Qc6 {[%clk 0:02:19.6]} 16. Bxf6 {[%clk 0:02:34.7]} 16... Bxf6
{[%clk 0:02:19.4]} 17. c3 {[%clk 0:02:34.7]} 17... Rfd8 {[%clk 0:02:16.1]} 18.
Rc1 {[%clk 0:02:31.6]} 18... d3 {[%clk 0:02:16.1]} 19. Qf3 {[%clk 0:02:25.5]}
19... Bg5 {[%clk 0:02:16.4]} 20. Ra1 {[%clk 0:02:23.9]} 20... d2 {[%clk
0:02:14.9]} 21. Ne3 {[%clk 0:02:20.2]} 21... Rd3 {[%clk 0:02:12.9]} 0-1

[Event "*** Qualifier 3: Titled Tuesday 3|2 Blitz"]
[Site "Chess.com"]
[Date "2017.04.18"]
[Round "5"]
[White "Malev212"]
[Black "Indianlad"]
[Result "0-1"]
[WhiteElo "2440"]
[BlackElo "2729"]
[TimeControl "180+2"]
[EndTime "14:03:41 PDT"]
[Termination "Indianlad won by resignation"]

1. e4 {[%clk 0:02:57.2]} 1... c5 {[%clk 0:02:59.9]} 2. Nf3 {[%clk 0:02:57.6]}
2... d6 {[%clk 0:03:00.8]} 3. d4 {[%clk 0:02:58.4]} 3... cxd4 {[%clk 0:03:02.7]}
4. Nxd4 {[%clk 0:02:59.3]} 4... Nf6 {[%clk 0:03:04.3]} 5. Nc3 {[%clk 0:02:59.1]}
5... Bd7 {[%clk 0:03:05.9]} 6. Bc4 {[%clk 0:02:56.3]} 6... Nc6 {[%clk
0:03:04.2]} 7. Bb3 {[%clk 0:02:56.9]} 7... Na5 {[%clk 0:03:04.4]} 8. h3 {[%clk
0:02:55.6]} 8... e5 {[%clk 0:02:57.7]} 9. Nde2 {[%clk 0:02:44.8]} 9... Nxb3
{[%clk 0:02:54.2]} 10. axb3 {[%clk 0:02:44.9]} 10... h6 {[%clk 0:02:56.1]} 11.
f4 {[%clk 0:02:36]} 11... b5 {[%clk 0:02:50]} 12. Ng3 {[%clk 0:02:04.2]} 12...
Be7 {[%clk 0:02:47.3]} 13. O-O {[%clk 0:01:52.1]} 13... O-O {[%clk 0:02:48.8]}
14. Be3 {[%clk 0:01:29.5]} 14... Qc7 {[%clk 0:02:49.4]} 15. Qd3 {[%clk
0:01:19.6]} 15... b4 {[%clk 0:02:47.5]} 16. Nce2 {[%clk 0:01:02.3]} 16... Rfc8
{[%clk 0:02:42.6]} 17. Rac1 {[%clk 0:00:57.6]} 17... Qb7 {[%clk 0:02:31.9]} 18.
fxe5 {[%clk 0:00:48.5]} 18... dxe5 {[%clk 0:02:30.8]} 19. Nf5 {[%clk 0:00:47.7]}
19... Bxf5 {[%clk 0:02:23.3]} 20. Rxf5 {[%clk 0:00:47.4]} 20... Rd8 {[%clk
0:02:18.6]} 0-1

[Event "*** Qualifier 3: Titled Tuesday 3|2 Blitz"]
[Site "Chess.com"]
[Date "2017.04.18"]
[Round "5"]
[White "superjem123"]
[Black "JoachimBN"]
[Result "1/2-1/2"]
[WhiteElo "2561"]
[BlackElo "2655"]
[TimeControl "180+2"]
[EndTime "14:03:57 PDT"]
[Termination "Game drawn by agreement"]

1. c4 {[%clk 0:03:02]} 1... b6 {[%clk 0:02:59.3]} 2. d4 {[%clk 0:02:56]} 2...
Bb7 {[%clk 0:02:59.2]} 3. Nc3 {[%clk 0:02:56.6]} 3... Nf6 {[%clk 0:02:57.1]} 4.
Nf3 {[%clk 0:02:49.5]} 4... e6 {[%clk 0:02:51.3]} 5. g3 {[%clk 0:02:50.2]} 5...
Bb4 {[%clk 0:02:50.4]} 6. Bd2 {[%clk 0:02:48.1]} 6... O-O {[%clk 0:02:46.4]} 7.
Bg2 {[%clk 0:02:47.8]} 7... c5 {[%clk 0:02:47.1]} 8. dxc5 {[%clk 0:02:44.4]}
8... Bxc5 {[%clk 0:02:49]} 9. O-O {[%clk 0:02:44.7]} 9... Nc6 {[%clk 0:02:47.8]}
10. a3 {[%clk 0:02:43.4]} 10... Nd4 {[%clk 0:02:45.5]} 11. Nxd4 {[%clk
0:02:28.5]} 11... Bxg2 {[%clk 0:02:47.4]} 12. Nxe6 {[%clk 0:02:26.2]} 12... dxe6
{[%clk 0:02:43.1]} 13. Kxg2 {[%clk 0:02:28.1]} 13... Qc7 {[%clk 0:02:44]} 14.
Rc1 {[%clk 0:02:24.4]} 14... Rfd8 {[%clk 0:02:41.5]} 15. Qc2 {[%clk 0:02:23.2]}
15... Be7 {[%clk 0:02:40]} 16. b3 {[%clk 0:02:19.8]} 16... Bxa3 {[%clk
0:02:38.5]} 17. Ra1 {[%clk 0:02:18.1]} 17... Be7 {[%clk 0:02:38.5]} 18. f3
{[%clk 0:02:12.1]} 18... a6 {[%clk 0:02:37.5]} 19. Rfc1 {[%clk 0:02:05.8]} 19...
Qb7 {[%clk 0:02:33.8]} 20. Be3 {[%clk 0:02:04.9]} 20... Ng4 {[%clk 0:02:29.4]}
21. Bg1 {[%clk 0:02:05.2]} 21... Nf6 {[%clk 0:02:18.9]} 22. Na4 {[%clk
0:01:59.1]} 22... Nd7 {[%clk 0:02:16.6]} 23. Rd1 {[%clk 0:01:57.2]} 23... Nc5
{[%clk 0:02:10.1]} 24. b4 {[%clk 0:01:40.3]} 24... Rxd1 {[%clk 0:01:50]} 25.
Rxd1 {[%clk 0:01:37.3]} 25... Nxa4 {[%clk 0:01:51]} 26. Qxa4 {[%clk 0:01:39.2]}
26... b5 {[%clk 0:01:52.5]} 27. cxb5 {[%clk 0:01:31.4]} 27... axb5 {[%clk
0:01:53.2]} 28. Qb3 {[%clk 0:01:28.8]} 28... Qc7 {[%clk 0:01:44]} 1/2-1/2

[Event "*** Qualifier 3: Titled Tuesday 3|2 Blitz"]
[Site "Chess.com"]
[Date "2017.04.18"]
[Round "5"]
[White "roldieyi"]
[Black "JaimeSantosLatasa"]
[Result "1-0"]
[WhiteElo "2237"]
[BlackElo "2527"]
[TimeControl "180+2"]
[EndTime "14:04:24 PDT"]
[Termination "roldieyi won by resignation"]

1. d4 {[%clk 0:02:59]} 1... d5 {[%clk 0:02:59.4]} 2. Nf3 {[%clk 0:03:00]} 2...
Nf6 {[%clk 0:02:59.3]} 3. c4 {[%clk 0:02:57.4]} 3... e6 {[%clk 0:02:59.6]} 4.
Bg5 {[%clk 0:02:57.6]} 4... dxc4 {[%clk 0:02:59.5]} 5. Nc3 {[%clk 0:02:56.4]}
5... a6 {[%clk 0:02:59.9]} 6. a4 {[%clk 0:02:56.8]} 6... Nc6 {[%clk 0:02:58.4]}
7. e3 {[%clk 0:02:56.2]} 7... Na5 {[%clk 0:02:58.9]} 8. Ne5 {[%clk 0:02:52.3]}
8... h6 {[%clk 0:02:58.9]} 9. Bh4 {[%clk 0:02:52.4]} 9... c5 {[%clk 0:02:59.3]}
10. Nxc4 {[%clk 0:02:51.4]} 10... cxd4 {[%clk 0:02:52.1]} 11. exd4 {[%clk
0:02:49.5]} 11... Be7 {[%clk 0:02:50]} 12. Ne5 {[%clk 0:02:38.8]} 12... O-O
{[%clk 0:02:47.8]} 13. Be2 {[%clk 0:02:38.9]} 13... Qb6 {[%clk 0:02:47.1]} 14.
Rb1 {[%clk 0:02:31.6]} 14... Rd8 {[%clk 0:02:44.7]} 15. Nf3 {[%clk 0:02:31.3]}
15... Nb3 {[%clk 0:02:42.1]} 16. O-O {[%clk 0:02:07.9]} 16... Nxd4 {[%clk
0:02:40.3]} 17. Ne1 {[%clk 0:01:53.8]} 17... e5 {[%clk 0:02:31.9]} 18. Qc1
{[%clk 0:01:35.1]} 18... Bf5 {[%clk 0:02:23.2]} 19. Bd3 {[%clk 0:01:19.7]} 19...
Nb3 {[%clk 0:02:08.6]} 20. Qc2 {[%clk 0:01:15.4]} 20... Rxd3 {[%clk 0:02:07]}
21. Nxd3 {[%clk 0:01:13.1]} 21... Nc5 {[%clk 0:02:07.7]} 22. Bxf6 {[%clk
0:01:05]} 22... Bxd3 {[%clk 0:01:53.9]} 23. Nd5 {[%clk 0:01:00.7]} 1-0

[Event "*** Qualifier 3: Titled Tuesday 3|2 Blitz"]
[Site "Chess.com"]
[Date "2017.04.18"]
[Round "5"]
[White "TenisMaster"]
[Black "Rodalquilar"]
[Result "1-0"]
[WhiteElo "2675"]
[BlackElo "2537"]
[TimeControl "180+2"]
[EndTime "14:04:31 PDT"]
[Termination "TenisMaster won by resignation"]

1. e4 {[%clk 0:03:02]} 1... e5 {[%clk 0:03:00.3]} 2. Nf3 {[%clk 0:03:02.1]} 2...
Nc6 {[%clk 0:03:01.9]} 3. Bb5 {[%clk 0:03:02.2]} 3... a6 {[%clk 0:03:02.9]} 4.
Ba4 {[%clk 0:03:03]} 4... Nf6 {[%clk 0:03:04.2]} 5. O-O {[%clk 0:03:02.4]} 5...
Be7 {[%clk 0:03:05.5]} 6. d3 {[%clk 0:03:00.8]} 6... d6 {[%clk 0:03:06]} 7. c3
{[%clk 0:02:55.8]} 7... O-O {[%clk 0:03:06.9]} 8. Re1 {[%clk 0:02:54.7]} 8...
Nd7 {[%clk 0:03:08.2]} 9. Bc2 {[%clk 0:02:49.4]} 9... Nb6 {[%clk 0:03:08]} 10.
d4 {[%clk 0:02:46.2]} 10... exd4 {[%clk 0:02:52.2]} 11. cxd4 {[%clk 0:02:37.1]}
11... d5 {[%clk 0:02:53.3]} 12. Nc3 {[%clk 0:02:30.7]} 12... Bg4 {[%clk
0:02:36.5]} 13. exd5 {[%clk 0:02:05.4]} 13... Nxd5 {[%clk 0:02:33.8]} 14. h3
{[%clk 0:02:04]} 14... Bh5 {[%clk 0:01:52.3]} 15. Bxh7+ {[%clk 0:01:53.3]} 15...
Kxh7 {[%clk 0:01:15.1]} 16. Ng5+ {[%clk 0:01:54.1]} 16... Kg6 {[%clk 0:00:45]}
17. Qd3+ {[%clk 0:01:51.6]} 17... f5 {[%clk 0:00:42.6]} 18. Ne6 {[%clk
0:01:41.4]} 18... Qd6 {[%clk 0:00:37]} 19. Nxd5 {[%clk 0:01:31]} 19... Qxd5
{[%clk 0:00:23.2]} 20. Nf4+ {[%clk 0:01:31]} 1-0

[Event "*** Qualifier 3: Titled Tuesday 3|2 Blitz"]
[Site "Chess.com"]
[Date "2017.04.18"]
[Round "5"]
[White "Jamaladam12200620"]
[Black "brauliocuarta"]
[Result "0-1"]
[WhiteElo "1971"]
[BlackElo "2143"]
[TimeControl "180+2"]
[EndTime "14:04:57 PDT"]
[Termination "brauliocuarta won by resignation"]

1. e4 {[%clk 0:02:47.2]} 1... c5 {[%clk 0:02:58.5]} 2. d4 {[%clk 0:02:48]} 2...
cxd4 {[%clk 0:02:58.6]} 3. c3 {[%clk 0:02:49.1]} 3... dxc3 {[%clk 0:02:59.7]} 4.
Nxc3 {[%clk 0:02:50.1]} 4... Nc6 {[%clk 0:03:01.1]} 5. Nf3 {[%clk 0:02:50.9]}
5... e6 {[%clk 0:03:02.6]} 6. Bc4 {[%clk 0:02:50.9]} 6... a6 {[%clk 0:03:04.3]}
7. O-O {[%clk 0:02:51.8]} 7... b5 {[%clk 0:03:04.2]} 8. Bb3 {[%clk 0:02:52.4]}
8... Bb7 {[%clk 0:03:05.7]} 9. Qe2 {[%clk 0:02:53.4]} 9... Na5 {[%clk
0:03:05.8]} 10. Bc2 {[%clk 0:02:51.5]} 10... Ne7 {[%clk 0:03:03.4]} 11. Rd1
{[%clk 0:02:51.8]} 11... Ng6 {[%clk 0:03:00.5]} 12. Be3 {[%clk 0:02:52.8]} 12...
Nc4 {[%clk 0:03:00.1]} 13. Bd4 {[%clk 0:02:44.8]} 13... Nxb2 {[%clk 0:02:53.7]}
14. Re1 {[%clk 0:02:35.9]} 14... Nc4 {[%clk 0:02:54]} 15. a4 {[%clk 0:02:36.3]}
15... Nf4 {[%clk 0:02:37.6]} 16. Qd1 {[%clk 0:02:29]} 16... b4 {[%clk
0:02:36.1]} 17. Ne2 {[%clk 0:02:19.2]} 17... Ng6 {[%clk 0:02:18.8]} 18. Bd3
{[%clk 0:02:13.9]} 18... Rc8 {[%clk 0:02:00.3]} 19. Rc1 {[%clk 0:02:09.8]} 19...
d5 {[%clk 0:02:00.4]} 20. exd5 {[%clk 0:02:04.6]} 20... Bxd5 {[%clk 0:01:58.2]}
21. a5 {[%clk 0:01:56.5]} 21... Qd7 {[%clk 0:01:39.7]} 22. Ng5 {[%clk
0:01:44.2]} 22... Bd6 {[%clk 0:01:32.4]} 23. g3 {[%clk 0:01:39.5]} 23... O-O
{[%clk 0:01:30.3]} 24. Be4 {[%clk 0:01:32.1]} 24... Nxa5 {[%clk 0:01:22.2]} 25.
Bxd5 {[%clk 0:01:31.1]} 25... exd5 {[%clk 0:01:23.1]} 26. Qd3 {[%clk 0:01:28.6]}
26... Nc4 {[%clk 0:01:19.7]} 27. h4 {[%clk 0:01:22.9]} 27... Rfe8 {[%clk
0:01:18.2]} 28. Nf3 {[%clk 0:01:15.8]} 28... Qg4 {[%clk 0:01:14.4]} 29. Kg2
{[%clk 0:01:13.5]} 29... Rxe2 {[%clk 0:01:12.3]} 30. Qxe2 {[%clk 0:01:05.2]}
30... Nf4+ {[%clk 0:01:12.9]} 0-1

[Event "*** Qualifier 3: Titled Tuesday 3|2 Blitz"]
[Site "Chess.com"]
[Date "2017.04.18"]
[Round "5"]
[White "MateusViageiro"]
[Black "chessking2151"]
[Result "0-1"]
[WhiteElo "2286"]
[BlackElo "2323"]
[TimeControl "180+2"]
[EndTime "14:05:36 PDT"]
[Termination "chessking2151 won by resignation"]

1. e4 {[%clk 0:03:02]} 1... c5 {[%clk 0:02:59.9]} 2. Nf3 {[%clk 0:03:02.2]} 2...
d6 {[%clk 0:03:01.2]} 3. d4 {[%clk 0:03:03.2]} 3... cxd4 {[%clk 0:03:03.1]} 4.
Nxd4 {[%clk 0:03:04.8]} 4... Nf6 {[%clk 0:03:04.6]} 5. Nc3 {[%clk 0:03:05.8]}
5... a6 {[%clk 0:03:05.6]} 6. Be3 {[%clk 0:03:05.4]} 6... e5 {[%clk 0:02:48.4]}
7. Nb3 {[%clk 0:03:05.6]} 7... Be6 {[%clk 0:02:49]} 8. f3 {[%clk 0:03:06.1]}
8... Be7 {[%clk 0:02:47.2]} 9. Qd2 {[%clk 0:03:07.1]} 9... Nbd7 {[%clk
0:02:45.6]} 10. O-O-O {[%clk 0:03:08.1]} 10... O-O {[%clk 0:02:46.8]} 11. Kb1
{[%clk 0:03:06.8]} 11... b5 {[%clk 0:02:46.4]} 12. g4 {[%clk 0:03:07.8]} 12...
Nc5 {[%clk 0:02:39.9]} 13. g5 {[%clk 0:03:06.2]} 13... Nh5 {[%clk 0:02:34.2]}
14. Nd5 {[%clk 0:03:02.8]} 14... Bxd5 {[%clk 0:02:31.6]} 15. exd5 {[%clk
0:02:58.4]} 15... Nxb3 {[%clk 0:02:28.6]} 16. axb3 {[%clk 0:02:55.1]} 16... f5
{[%clk 0:02:28.6]} 17. gxf6 {[%clk 0:02:50.5]} 17... Rxf6 {[%clk 0:02:23.1]} 18.
Rg1 {[%clk 0:02:50.8]} 18... Nf4 {[%clk 0:02:20.1]} 19. Bxf4 {[%clk 0:02:49.2]}
19... Rxf4 {[%clk 0:02:19.7]} 20. Bh3 {[%clk 0:02:42.7]} 20... Kh8 {[%clk
0:02:18.1]} 21. Qg2 {[%clk 0:02:39.3]} 21... Qf8 {[%clk 0:02:14.7]} 22. Bg4
{[%clk 0:02:36.7]} 22... g6 {[%clk 0:02:15.1]} 23. h4 {[%clk 0:02:36.5]} 23...
a5 {[%clk 0:01:55.2]} 24. h5 {[%clk 0:02:35.5]} 24... g5 {[%clk 0:01:55.3]} 25.
Qe2 {[%clk 0:02:31.3]} 25... Qe8 {[%clk 0:01:52.8]} 26. c4 {[%clk 0:02:15.3]}
26... a4 {[%clk 0:01:49.5]} 27. bxa4 {[%clk 0:02:07.6]} 27... bxc4 {[%clk
0:01:47.3]} 28. Qc2 {[%clk 0:02:05]} 28... Rxa4 {[%clk 0:01:41.8]} 29. h6 {[%clk
0:01:56.8]} 29... e4 {[%clk 0:01:29.2]} 30. fxe4 {[%clk 0:01:34.3]} 30... Bf6
{[%clk 0:01:30]} 31. e5 {[%clk 0:01:34.4]} 31... Bxe5 {[%clk 0:01:28.7]} 32.
Rdf1 {[%clk 0:00:59.9]} 32... Qa8 {[%clk 0:01:26]} 33. Qe2 {[%clk 0:00:55.5]}
33... Ra1+ {[%clk 0:01:10.1]} 34. Kc2 {[%clk 0:00:55.6]} 34... Qa4+ {[%clk
0:01:11.7]} 0-1